fUSD/lending_fUSD_20260323
["ID","MTS","AMOUNT","RATE_DAILY","PERIOD"]
[408787202,1774267831596,-159.21,0.00011465,2]
[408787205,1774267831605,-500.0,0.00011594,2]
[408787208,1774267831615,-166.66,0.00011606,2]
[408787210,1774267831627,-500.0,0.00011715,2]
[408787212,1774267831637,-1680.0,0.00011729,2]
[408787214,1774267831646,-300.0,0.00011758,2]
[408787215,1774267831656,-1200.0,0.00011759,2]
[408787218,1774267831668,-2853.67,0.00011762,2]
[408787219,1774267831677,-166.66,0.00011822,2]
[408787221,1774267831687,-150.0,0.00011826,2]
[408787223,1774267831697,-799.78,0.00011826,2]
[408787225,1774267831707,-166.66,0.00012038,2]
[408787228,1774267831717,-346.49747861,0.00012272,2]
[408787229,1774267831726,-5041.59025474,0.00012272,2]
[408787231,1774267831736,-217.56,0.00012321,2]
[408787233,1774267831746,-217.55,0.00012321,2]
[408787235,1774267831755,-165.0,0.00012321,3]
[408787238,1774267831766,-162.0,0.00012321,3]
[408787240,1774267831775,-37932.0491866,0.00012371,2]
[408787242,1774267831787,-6065.1522273,0.00012371,2]
[408787244,1774267831798,-4553.43157698,0.00012371,2]
[408787246,1774267831809,-1300.0,0.00012371,2]
[408787248,1774267831820,-3250.0,0.00012371,2]
[408787251,1774267831832,-2257.55389324,0.00012371,2]
[408787253,1774267831846,-76541.00132195,0.00012371,2]
[408787255,1774267831857,-10269.98496993,0.00012371,2]
[408787256,1774267831868,-80090.87583385,0.00012371,2]
[408787257,1774267831882,-17946.86092955,0.00012371,2]
[408787258,1774267831893,-414.92196176,0.00012371,2]
[408787259,1774267831904,-5252.64091903,0.00012371,2]
[408787260,1774267831927,-6088.93583371,0.00012371,2]
[408787264,1774267837542,-169.38219129,0.00012361,2]
[408787265,1774267837551,-69830.61780869,0.00012371,2]
[408787266,1774267837562,-967059.56483741,0.00012371,2]
[408787267,1774267837571,-2500.0,0.00012371,2]
[408787268,1774267837579,-361.371545,0.00012372,2]
[408787269,1774267837587,-153.27466147,0.00012372,2]
[408787270,1774267837596,-2945.7892905,0.00012372,2]
[408787272,1774267837605,-201.44986731,0.00012372,2]
[408787274,1774267837614,-193.50293386,0.00012372,2]
[408787275,1774267837623,-6327.46205555,0.00012372,2]
[408787276,1774267837634,-1833.14084635,0.00012372,2]
[408787277,1774267837644,-525.09168314,0.00012372,2]
[408787278,1774267837653,-159.41325677,0.000124,2]
[408787279,1774267837663,-500.0,0.00012425,2]
[408787280,1774267837671,-2666.05,0.00012425,2]
[408787281,1774267837680,-500.0,0.00012464,2]
[408787282,1774267837688,-200.0,0.00012465,2]
[408787283,1774267837697,-500.0,0.00012465,2]
[408787284,1774267837706,-5495.4584,0.00012471,2]
[408787286,1774267837715,-877528.43062264,0.00012471,2]
[408787288,1774267837727,-637.50353872,0.00012471,2]
[408787289,1774267837742,-9953.8234575,0.00012471,2]
[408787290,1774267837753,-8460.0,0.00012471,2]
[408787291,1774267837763,-213445.8,0.00012471,2]
[408787299,1774267839915,-3520.18792693,0.00012471,2]
[408787300,1774267839974,-1394.0,0.00012471,2]
[408787306,1774267842846,-648.92043422,0.00012471,2]
[408787307,1774267842859,-69750.0,0.00012471,2]
[408787309,1774267842879,-19000.41860783,0.00012471,2]
[408787330,1774267845411,-420.64133997,0.00012471,2]
[408787333,1774267845423,-318.62699995,0.00012471,2]
[408787385,1774267847357,-44939.9624227,0.00012471,2]
[408787386,1774267847375,-19338.68268112,0.00012471,2]
[408787387,1774267847387,-17179.20080911,0.00012471,2]
[408787388,1774267847403,-1399.99,0.00012471,2]
[408787389,1774267847414,-212063.81115931,0.00012471,2]
[408787390,1774267847423,-2430.5184,0.00012472,2]
[408787391,1774267847432,-16871.3157,0.00012472,2]
[408787392,1774267847441,-1000.0,0.00012472,2]
[408787393,1774267847450,-1000.0,0.0001257,2]
[408787394,1774267847459,-151.0,0.0001257,2]
[408787395,1774267847467,-1010.03678902,0.00012571,3]
[408787396,1774267847476,-500.0,0.00012571,2]
[408787397,1774267847486,-164.51072392,0.00012571,2]
[408787398,1774267847495,-191.42360261,0.00012571,2]
[408787399,1774267847504,-319.00240966,0.00012571,2]
[408787400,1774267847514,-500.0,0.00012571,2]
[408787401,1774267847523,-500.0,0.00012571,2]
[408787402,1774267847533,-500.0,0.00012571,2]
[408787403,1774267847542,-500.0,0.00012571,2]
[408787404,1774267847552,-500.0,0.00012571,2]
[408787405,1774267847561,-500.0,0.00012571,2]
[408787406,1774267847571,-500.0,0.00012571,2]
[408787407,1774267847580,-500.0,0.00012571,2]
[408787408,1774267847589,-500.0,0.00012571,2]
[408787409,1774267847598,-500.0,0.00012571,2]
[408787410,1774267847608,-378.06568649,0.00012571,2]
[408787411,1774267847622,-500.0,0.00012571,2]
[408787412,1774267847631,-500.0,0.00012571,2]
[408787413,1774267847640,-500.0,0.00012571,2]
[408787414,1774267847649,-500.0,0.00012571,2]
[408787415,1774267847659,-500.0,0.00012571,2]
[408787416,1774267847669,-500.0,0.00012571,2]
[408787417,1774267847679,-500.0,0.00012571,2]
[408787418,1774267847689,-500.0,0.00012571,2]
[408787419,1774267847699,-500.0,0.00012571,2]
[408787420,1774267847708,-500.0,0.00012571,2]
[408787421,1774267847718,-500.0,0.00012571,2]
[408787422,1774267847728,-500.0,0.00012571,2]
[408787423,1774267847737,-500.0,0.00012571,2]
[408787424,1774267847747,-500.0,0.00012571,2]
[408787425,1774267847756,-500.0,0.00012571,2]
[408787426,1774267847766,-500.0,0.00012571,2]
[408787427,1774267847775,-500.0,0.00012571,2]
[408787428,1774267847785,-500.0,0.00012571,2]
[408787429,1774267847795,-500.0,0.00012571,2]
[408787430,1774267847804,-500.0,0.00012571,2]
[408787431,1774267847814,-500.0,0.00012571,2]
[408787432,1774267847823,-500.0,0.00012571,2]
[408787433,1774267847833,-500.0,0.00012571,2]
[408787434,1774267847843,-500.0,0.00012571,2]
[408787435,1774267847856,-500.0,0.00012571,2]
[408787436,1774267847865,-500.0,0.00012571,2]
[408787437,1774267847874,-500.0,0.00012571,2]
[408787438,1774267847884,-500.0,0.00012571,2]
[408787439,1774267847904,-500.0,0.00012571,2]
[408787440,1774267847914,-500.0,0.00012571,2]
[408787441,1774267847928,-500.0,0.00012571,2]
[408787442,1774267847937,-500.0,0.00012571,2]
[408787443,1774267847948,-500.0,0.00012571,2]
[408787444,1774267847958,-500.0,0.00012571,2]
[408787445,1774267847967,-500.0,0.00012571,2]
[408787446,1774267847978,-500.0,0.00012571,2]
[408787447,1774267847987,-500.0,0.00012571,2]
[408787448,1774267847997,-500.0,0.00012571,2]
[408787449,1774267848007,-500.0,0.00012571,2]
[408787450,1774267848016,-500.0,0.00012571,2]
[408787451,1774267848026,-500.0,0.00012571,2]
[408787452,1774267848035,-500.0,0.00012571,2]
[408787453,1774267848045,-500.0,0.00012571,2]
[408787454,1774267848054,-500.0,0.00012571,2]
[408787455,1774267848063,-500.0,0.00012571,2]
[408787456,1774267848073,-500.0,0.00012571,2]
[408787457,1774267848084,-500.0,0.00012571,2]
[408787458,1774267848093,-500.0,0.00012571,2]
[408787459,1774267848103,-500.0,0.00012571,2]
[408787460,1774267848112,-500.0,0.00012571,2]
[408787461,1774267848122,-500.0,0.00012571,2]
[408787462,1774267848131,-500.0,0.00012571,2]
[408787463,1774267848140,-500.0,0.00012571,2]
[408787464,1774267848150,-500.0,0.00012571,2]
[408787465,1774267848159,-500.0,0.00012571,2]
[408787466,1774267848168,-500.0,0.00012571,2]
[408787467,1774267848177,-500.0,0.00012571,2]
[408787468,1774267848186,-500.0,0.00012571,2]
[408787469,1774267848195,-500.0,0.00012571,2]
[408787470,1774267848204,-199.61605228,0.00012571,2]
[408787471,1774267848213,-500.0,0.00012571,2]
[408787472,1774267848222,-500.0,0.00012571,2]
[408787473,1774267848231,-500.0,0.00012571,2]
[408787474,1774267848240,-500.0,0.00012571,2]
[408787475,1774267848249,-500.0,0.00012571,2]
[408787476,1774267848258,-500.0,0.00012571,2]
[408787477,1774267848267,-500.0,0.00012571,2]
[408787478,1774267848277,-500.0,0.00012571,2]
[408787479,1774267848287,-500.0,0.00012571,2]
[408787480,1774267848296,-500.0,0.00012571,2]
[408787481,1774267848305,-288.05361231,0.00012571,2]
[408787482,1774267848314,-500.0,0.00012571,2]
[408787483,1774267848323,-500.0,0.00012571,2]
[408787484,1774267848333,-500.0,0.00012571,2]
[408787485,1774267848342,-161.39713823,0.00012571,2]
[408787486,1774267848351,-500.0,0.00012571,2]
[408787487,1774267848360,-500.0,0.00012571,2]
[408787488,1774267848369,-500.0,0.00012571,2]
[408787489,1774267848379,-500.0,0.00012571,2]
[408787490,1774267848388,-500.0,0.00012571,2]
[408787491,1774267848398,-500.0,0.00012571,2]
[408787492,1774267848407,-500.0,0.00012571,2]
[408787493,1774267848417,-500.0,0.00012571,2]
[408787494,1774267848430,-500.0,0.00012571,2]
[408787495,1774267848438,-500.0,0.00012571,2]
[408787496,1774267848447,-90.56112665,0.00012571,2]
[408787498,1774268018358,2858.0,9.511e-05,2]
[408787499,1774268021268,154.0,6.479e-05,2]
[408787503,1774268783830,3861.95,8e-05,2]
[408787504,1774268783853,2867.07263416,8e-05,2]
[408787510,1774268938403,7132.93736584,9.5e-05,3]
[408787511,1774268938426,10000.01,9.5e-05,3]
[408787512,1774268938446,10000.01,9.5e-05,3]
[408787513,1774268938467,10000.01,9.5e-05,3]
[408787514,1774268938488,10000.01,9.5e-05,3]
[408787515,1774268938508,10000.01,9.5e-05,3]
[408787516,1774268938530,10000.01,9.5e-05,3]
[408787517,1774268938552,10000.01,9.5e-05,3]
[408787518,1774268938572,10000.01,9.5e-05,3]
[408787519,1774268938593,2230.07263416,9.5e-05,3]
[408787533,1774269008176,161.0,9.5e-05,3]
[408787545,1774269031520,-176.25498991,9.99e-05,2]
[408787546,1774269031530,-289.17789032,9.99e-05,2]
[408787547,1774269031540,-40.84311977,9.99e-05,2]
[408787548,1774269031580,-219.15688023,9.99e-05,2]
[408787549,1774269031590,-303.0,9.996e-05,2]
[408787550,1774269031599,-300.0,9.996e-05,2]
[408787551,1774269031608,-300.0,9.996e-05,2]
[408787552,1774269031617,-300.0,9.996e-05,2]
[408787553,1774269031627,-689.66113968,9.996e-05,2]
[408787554,1774269031638,-510.33886032,9.996e-05,2]
[408787555,1774269031648,-300.0,9.996e-05,2]
[408787556,1774269031657,-8421.84387895,0.0001,2]
[408787557,1774269031667,-578.74616077,0.0001,2]
[408787558,1774269031682,-16667.40996028,0.0001,2]
[408787559,1774269031692,-5533.0,0.000103,3]
[408787560,1774269031702,-150.0,0.00010499,2]
[408787561,1774269031711,-5533.0,0.000105,5]
[408787562,1774269031720,-321.85767119,0.00010989,2]
[408787573,1774269032150,-5000.0,0.00010989,2]
[408787574,1774269032160,-380.45961475,0.00010989,2]
[408787575,1774269032171,-250.0,0.00010989,2]
[408787576,1774269032180,-420.0,0.00010996,2]
[408787577,1774269032193,-300.0,0.00010996,2]
[408787578,1774269032203,-370.75969287,0.00010996,2]
[408787580,1774269037560,-1309.24030713,0.00010996,2]
[408787581,1774269037570,-420.0,0.00010996,2]
[408787582,1774269037579,-150.0,0.00011,2]
[408787583,1774269037589,-617.38,0.00011229,2]
[408787584,1774269037599,-200.0,0.00011475,2]
[408787585,1774269037608,-1465.44,0.00011507,2]
[408787586,1774269037617,-255.0,0.00011528,2]
[408787587,1774269037626,-150.0,0.00011669,2]
[408787588,1774269037637,-587.0,0.00012095,2]
[408787589,1774269037647,-404.97341287,0.00012095,2]
[408787590,1774269037659,-531.6,0.00012095,2]
[408787615,1774269041493,-1414.42658713,0.00012095,2]
[408787616,1774269041502,-451.0,0.00012095,2]
[408787617,1774269041511,-500.0,0.00012096,2]
[408787618,1774269041520,-644.78105601,0.00012096,2]
[408787619,1774269041529,-2214.64031506,0.0001227,2]
[408787620,1774269041540,-291.01606831,0.0001227,2]
[408787621,1774269041551,-185.73351663,0.0001227,2]
[408787622,1774269041560,-317.72309821,0.00012271,2]
[408787623,1774269041569,-2651.21036145,0.00012271,2]
[408787624,1774269041578,-169.38219129,0.00012361,2]
[408787625,1774269041587,-127.90030393,0.00012362,2]
[408787631,1774269042645,-999.4449055,0.00012362,2]
[408787632,1774269042656,-296.9978388,0.00012362,2]
[408787633,1774269042668,-500.0,0.0001237,2]
[408787634,1774269042678,-500.0,0.0001237,2]
[408787635,1774269042689,-500.0,0.0001237,2]
[408787636,1774269042699,-500.0,0.0001237,2]
[408787637,1774269042710,-500.0,0.0001237,2]
[408787638,1774269042719,-500.0,0.0001237,2]
[408787639,1774269042730,-500.0,0.0001237,2]
[408787640,1774269042740,-500.0,0.0001237,2]
[408787641,1774269042750,-500.0,0.0001237,2]
[408787642,1774269042760,-500.0,0.0001237,2]
[408787643,1774269042772,-500.0,0.0001237,2]
[408787644,1774269042784,-500.0,0.0001237,2]
[408787645,1774269042796,-500.0,0.0001237,2]
[408787646,1774269042808,-500.0,0.0001237,2]
[408787647,1774269042819,-500.0,0.0001237,2]
[408787648,1774269042829,-500.0,0.0001237,2]
[408787649,1774269042843,-500.0,0.0001237,2]
[408787650,1774269042854,-500.0,0.0001237,2]
[408787651,1774269042871,-500.0,0.0001237,2]
[408787652,1774269042892,-500.0,0.0001237,2]
[408787653,1774269042914,-500.0,0.0001237,2]
[408787654,1774269042925,-500.0,0.0001237,2]
[408787655,1774269042938,-500.0,0.0001237,2]
[408787656,1774269042949,-500.0,0.0001237,2]
[408787657,1774269042961,-500.0,0.0001237,2]
[408787658,1774269042973,-500.0,0.0001237,2]
[408787659,1774269042984,-500.0,0.0001237,2]
[408787660,1774269042998,-500.0,0.0001237,2]
[408787662,1774269043010,-500.0,0.0001237,2]
[408787663,1774269043021,-500.0,0.0001237,2]
[408787664,1774269043031,-500.0,0.0001237,2]
[408787666,1774269043043,-500.0,0.0001237,2]
[408787667,1774269043054,-500.0,0.0001237,2]
[408787669,1774269043066,-500.0,0.0001237,2]
[408787671,1774269043080,-500.0,0.0001237,2]
[408787673,1774269043100,-500.0,0.0001237,2]
[408787675,1774269043121,-500.0,0.0001237,2]
[408787677,1774269043143,-500.0,0.0001237,2]
[408787679,1774269043163,-500.0,0.0001237,2]
[408787681,1774269043184,-500.0,0.0001237,2]
[408787683,1774269043206,-500.0,0.0001237,2]
[408787685,1774269043225,-500.0,0.0001237,2]
[408787687,1774269043236,-500.0,0.0001237,2]
[408787689,1774269043245,-500.0,0.0001237,2]
[408787691,1774269043256,-500.0,0.0001237,2]
[408787693,1774269043265,-500.0,0.0001237,2]
[408787695,1774269043275,-500.0,0.0001237,2]
[408787697,1774269043286,-500.0,0.0001237,2]
[408787699,1774269043296,-500.0,0.0001237,2]
[408787701,1774269043306,-214.80151795,0.0001237,2]
[408787703,1774269043316,-500.0,0.0001237,2]
[408787705,1774269043328,-500.0,0.0001237,2]
[408787707,1774269043338,-500.0,0.0001237,2]
[408787709,1774269043349,-500.0,0.0001237,2]
[408787711,1774269043359,-500.0,0.0001237,2]
[408787713,1774269043370,-500.0,0.0001237,2]
[408787715,1774269043381,-500.0,0.0001237,2]
[408787717,1774269043393,-500.0,0.0001237,2]
[408787718,1774269043402,-500.0,0.0001237,2]
[408787719,1774269043412,-500.0,0.0001237,2]
[408787720,1774269043423,-500.0,0.0001237,2]
[408787721,1774269043438,-500.0,0.0001237,2]
[408787722,1774269043448,-7050.3587446,0.00012371,2]
[408787723,1774269043480,-610.77887769,0.00012371,2]
[408787745,1774269045587,-886.3896,0.00012371,2]
[408787746,1774269045598,-432.46,0.00012371,2]
[408787747,1774269045650,-1136.82271602,0.00012371,2]
[408787748,1774269045817,-47.71466169,0.00012371,2]
[408787749,1774269045827,-1000.0,0.00012371,2]
[408787750,1774269045836,-1322.37583081,0.00012371,2]
[408787751,1774269045855,-699.88,0.00012371,2]
[408787752,1774269045867,-35077.99999999,0.00012371,2]
[408787753,1774269045879,-10605.00000005,0.00012371,2]
[408787787,1774270231770,-159.21,0.00011264,2]
[408787788,1774270231780,-1609.34,0.00011289,2]
[408787789,1774270231935,-478.3030328,0.00011289,2]
[408787790,1774270231945,-722.24,0.00011315,2]
[408787791,1774270231955,-2000.0,0.00011367,2]
[408787792,1774270231965,-219.18768907,0.00011651,2]
[408787793,1774270231975,-164.85,0.00011751,2]
[408787794,1774270231985,-1200.0,0.00012045,2]
[408787795,1774270231994,-150.0,0.00012046,2]
[408787796,1774270232005,-300.0,0.00012046,2]
[408787797,1774270232015,-1200.0,0.00012046,2]
[408787798,1774270232025,-500.0,0.00012047,2]
[408787799,1774270232035,-500.0,0.00012047,2]
[408787800,1774270232045,-500.0,0.00012047,2]
[408787802,1774270232055,-500.0,0.00012047,2]
[408787803,1774270232065,-500.0,0.00012047,2]
[408787804,1774270232076,-500.0,0.00012047,2]
[408787805,1774270232085,-500.0,0.00012047,2]
[408787806,1774270232095,-500.0,0.00012047,2]
[408787807,1774270232105,-500.0,0.00012047,2]
[408787808,1774270232115,-500.0,0.00012047,2]
[408787809,1774270232128,-500.0,0.00012047,2]
[408787810,1774270232139,-169.07210569,0.00012047,2]
[408787811,1774270232149,-157.01818049,0.00012051,2]
[408787812,1774270232159,-1131.83351109,0.00012059,2]
[408787813,1774270232169,-500.0,0.0001206,2]
[408787814,1774270232179,-223.30168676,0.0001206,2]
[408787815,1774270232190,-500.0,0.0001206,2]
[408787816,1774270232685,-193.34337251,0.0001206,2]
[408787817,1774270232719,-500.0,0.0001206,2]
[408787818,1774270232729,-500.0,0.0001206,2]
[408787819,1774270232738,-500.0,0.0001206,2]
[408787820,1774270232748,-500.0,0.0001206,2]
[408787821,1774270232758,-500.0,0.0001206,2]
[408787822,1774270232767,-164.64598055,0.0001206,2]
[408787823,1774270232777,-500.0,0.0001206,2]
[408787824,1774270232786,-500.0,0.0001206,2]
[408787825,1774270232796,-500.0,0.0001206,2]
[408787826,1774270232805,-500.0,0.0001206,2]
[408787827,1774270232815,-500.0,0.0001206,2]
[408787828,1774270232825,-308.56667881,0.0001206,2]
[408787829,1774270232834,-500.0,0.0001206,2]
[408787830,1774270232844,-500.0,0.0001206,2]
[408787831,1774270232853,-265.42136728,0.0001206,2]
[408787832,1774270232864,-369.05677423,0.0001206,2]
[408787833,1774270232875,-500.0,0.0001206,2]
[408787834,1774270232884,-500.0,0.0001206,2]
[408787835,1774270232894,-500.0,0.0001206,2]
[408787836,1774270232903,-500.0,0.0001206,2]
[408787837,1774270232912,-500.0,0.0001206,2]
[408787838,1774270232922,-500.0,0.0001206,2]
[408787839,1774270232932,-500.0,0.0001206,2]
[408787840,1774270232942,-500.0,0.0001206,2]
[408787841,1774270232952,-500.0,0.0001206,2]
[408787842,1774270232961,-337.21483831,0.0001206,2]
[408787843,1774270232970,-500.0,0.0001206,2]
[408787844,1774270232980,-500.0,0.0001206,2]
[408787845,1774270232989,-500.0,0.0001206,2]
[408787846,1774270232999,-500.0,0.0001206,2]
[408787847,1774270233009,-500.0,0.0001206,2]
[408787848,1774270233018,-500.0,0.0001206,2]
[408787849,1774270233029,-500.0,0.0001206,2]
[408787850,1774270233039,-237.87897267,0.0001206,2]
[408787851,1774270233048,-500.0,0.0001206,2]
[408787852,1774270233058,-500.0,0.0001206,2]
[408787853,1774270233068,-500.0,0.0001206,2]
[408787854,1774270233078,-500.0,0.0001206,2]
[408787855,1774270233087,-500.0,0.0001206,2]
[408787856,1774270233097,-500.0,0.0001206,2]
[408787857,1774270233107,-500.0,0.0001206,2]
[408787858,1774270233117,-500.0,0.0001206,2]
[408787859,1774270233131,-500.0,0.0001206,2]
[408787860,1774270233140,-500.0,0.0001206,2]
[408787861,1774270233150,-500.0,0.0001206,2]
[408787862,1774270233160,-500.0,0.0001206,2]
[408787863,1774270233170,-548.51676978,0.0001206,2]
[408787864,1774270233180,-500.0,0.0001206,2]
[408787865,1774270233189,-500.0,0.0001206,2]
[408787866,1774270233198,-500.0,0.0001206,2]
[408787867,1774270233207,-500.0,0.0001206,2]
[408787868,1774270233216,-500.0,0.0001206,2]
[408787869,1774270233226,-500.0,0.0001206,2]
[408787870,1774270233235,-500.0,0.0001206,2]
[408787871,1774270233244,-500.0,0.0001206,2]
[408787872,1774270233254,-500.0,0.0001206,2]
[408787873,1774270233263,-500.0,0.0001206,2]
[408787874,1774270233272,-500.0,0.0001206,2]
[408787875,1774270233282,-500.0,0.0001206,2]
[408787876,1774270233292,-500.0,0.0001206,2]
[408787877,1774270233301,-500.0,0.0001206,2]
[408787878,1774270233311,-500.0,0.0001206,2]
[408787879,1774270233320,-500.0,0.0001206,2]
[408787880,1774270233330,-500.0,0.0001206,2]
[408787881,1774270233339,-500.0,0.0001206,2]
[408787882,1774270233350,-571.48015179,0.0001206,2]
[408787883,1774270233359,-500.0,0.0001206,2]
[408787884,1774270233369,-500.0,0.0001206,2]
[408787885,1774270233379,-500.0,0.0001206,2]
[408787886,1774270233389,-500.0,0.0001206,2]
[408787887,1774270233399,-500.0,0.0001206,2]
[408787888,1774270233412,-500.0,0.0001206,2]
[408787889,1774270233422,-500.0,0.0001206,2]
[408787890,1774270233435,-350.0,0.0001206,2]
[408787891,1774270233449,-500.0,0.0001206,2]
[408787892,1774270233459,-500.0,0.0001206,2]
[408787893,1774270233468,-500.0,0.0001206,2]
[408787894,1774270233478,-500.0,0.0001206,2]
[408787895,1774270233489,-200.0,0.0001206,2]
[408787896,1774270233498,-500.0,0.0001206,2]
[408787897,1774270233507,-82139.91824336,0.00012061,2]
[408787898,1774270233521,-68580.46196755,0.00012061,2]
[408787899,1774270233533,-7285.20572279,0.00012061,2]
[408787900,1774270233544,-11382.61392435,0.00012061,2]
[408787907,1774270237753,-901.61702267,0.00012061,2]
[408787909,1774270239579,-67843.1095036,0.00012061,2]
[408787911,1774270240302,-5173.39741082,0.00011961,2]
[408787912,1774270240312,-3521.08403908,0.00012061,2]
[408787913,1774270240323,-6491.97024285,0.00012061,2]
[408787914,1774270240360,-349.885,0.00012061,2]
[408787915,1774270240371,-784.15400185,0.00012061,2]
[408787956,1774270242872,-1867.03752048,0.00012061,2]
[408787957,1774270242985,-1562.72454694,0.00012061,2]
[408787958,1774270243049,-246284.9906016,0.00012061,2]
[408787962,1774270245935,-1124.47313371,0.00012061,2]
[408787963,1774270245949,-459.34720061,0.00012061,2]
[408787964,1774270245963,-2866.47478505,0.00012061,2]
[408787965,1774270245976,-250.31248742,0.00012061,2]
[408787966,1774270246196,-350597.91721947,0.00012061,2]
[408787967,1774270246225,-2277.54999926,0.00012061,2]
[408787973,1774270273632,170.38,9.008e-05,2]
[408787974,1774270506501,166.0,9.008e-05,3]
[408787989,1774271046956,165.0,9.008e-05,3]
[408787993,1774271111382,164.0,9.008e-05,3]
[408788015,1774271434016,-1537.97245266,9.716e-05,2]
[408788016,1774271434044,-358.96031976,9.716e-05,2]
[408788017,1774271434055,-928.51178889,9.716e-05,2]
[408788018,1774271434067,-1074.5322066,9.716e-05,2]
[408788019,1774271434078,-11.37323209,9.716e-05,2]
[408788020,1774271434088,-489.62676791,9.766e-05,2]
[408788021,1774271434106,-252.66503209,9.766e-05,2]
[408788022,1774271434115,-223.41847887,9.815e-05,2]
[408788023,1774271434128,-835.60817854,9.815e-05,2]
[408788024,1774271434139,-267.09849734,9.815e-05,2]
[408788025,1774271434596,-3673.87484525,9.815e-05,2]
[408788026,1774271434606,-150.0,9.84e-05,2]
[408788027,1774271434615,-290.80368336,9.918e-05,2]
[408788028,1774271434625,-300.0,9.926e-05,2]
[408788029,1774271434635,-300.0,9.926e-05,2]
[408788030,1774271434645,-300.0,9.926e-05,2]
[408788031,1774271434655,-1200.0,9.926e-05,2]
[408788032,1774271434664,-5000.0,9.927e-05,2]
[408788033,1774271434673,-4159.36869245,9.927e-05,2]
[408788034,1774271434683,-290.80368334,0.00010159,2]
[408788035,1774271434692,-300.0,0.00010297,2]
[408788036,1774271434701,-300.0,0.00010297,2]
[408788037,1774271434710,-1200.0,0.00010298,2]
[408788038,1774271434720,-3468.0,0.000103,3]
[408788039,1774271434729,-500.41700518,0.00010373,2]
[408788040,1774271434738,-150.0,0.00010392,2]
[408788041,1774271434747,-500.0,0.00010392,2]
[408788042,1774271434757,-500.0,0.00010392,2]
[408788043,1774271434770,-500.0,0.00010392,2]
[408788044,1774271434779,-500.0,0.00010392,2]
[408788045,1774271434788,-500.0,0.00010392,2]
[408788046,1774271434798,-277.14801518,0.00010392,2]
[408788047,1774271434809,-500.0,0.00010392,2]
[408788048,1774271434818,-500.0,0.00010392,2]
[408788049,1774271434827,-449.83519664,0.00010392,2]
[408788050,1774271434838,-177361.36,0.00010393,2]
[408788051,1774271434847,-290.80368334,0.000104,2]
[408788052,1774271434857,-5533.0,0.000105,5]
[408788053,1774271434867,-369.0,0.00010619,2]
[408788054,1774271434877,-150.0,0.000107,2]
[408788055,1774271434886,-250.0,0.00010769,2]
[408788056,1774271434895,-5000.0,0.00010769,2]
[408788057,1774271434905,-250.0,0.00010769,2]
[408788058,1774271434914,-5000.0,0.00010797,2]
[408788059,1774271434923,-151.0,0.00010797,2]
[408788060,1774271434932,-1000.0,0.000108,2]
[408788061,1774271434941,-1000.0,0.000108,3]
[408788062,1774271434950,-1000.0,0.000108,4]
[408788063,1774271434960,-1000.0,0.000108,5]
[408788064,1774271434969,-42312.27319865,0.000108,2]
[408788065,1774271434982,-1754.12012649,0.000108,2]
[408788066,1774271434993,-33230.70295273,0.000108,2]
[408788067,1774271435003,-1500.0,0.00010813,2]
[408788068,1774271435012,-338.73,0.00010853,2]
[408788069,1774271435021,-500.0,0.00010888,2]
[408788070,1774271435031,-178.0,0.00010919,2]
[408788071,1774271435040,-420.0,0.00010919,2]